[Event "84th Georgian Championship 2025"]
[Site "Tbilisi"]
[Date "2025.02.10"]
[Round "7.5"]
[White "Quparadze, Giga"]
[Black "Petriashvili, Nikoloz"]
[Result "1-0"]
[Annotator "TA"]
[ECO "B30"]
[WhiteElo "2537"]
[BlackElo "2450"]
[PlyCount "79"]
[EventDate "2025.02.03"]
[EventType "tourn"]
[EventCountry "GEO"]
[SourceTitle "playchess.com"]
[Source "ChessBase"]
[SourceQuality "1"]
[TimeControl "40/5400+30:1800+30"]

{[%evp 9,79,4,15,0,22,40,45,37,42,58,40,25,32,26,92,89,99,62,86,90,83,83,79,80,94,87,163,145,179,179,184,171,245,248,235,237,234,233,342,335,477,314,304,379,361,254,382,391,391,393,385,391,377,286,301,293,416,363,468,471,522,509,6279,6111,6289,6201,5808,5800,5189,894,29966,29965]} 1. e4 {[%emt 0:00:02]} c5 {[%emt 0:05:21]} 2. Nf3 {[%emt 0:00:05]} Nc6 {[%emt 0:00:04]} 3. Bb5 {[%emt 0:00:05]} e6 {[%emt 0:00:03]} 4. Bxc6 {[%emt 0:00:04]} bxc6 {[%emt 0:00:04]} 5. d3 {[%emt 0:00:03]} Ne7 {[%emt 0:02:02]} 6. Nbd2 {[%emt 0:00:11] B30: Sicilian: 2...Nc6 3 Bb5, lines without ...g6.} f6 {[%emt 0:00:13]} 7. Nh4 {[%emt 0:00:05]} d5 {[%emt 0:00:06]} 8. f4 {[%emt 0:00:07] White is slightly better.} c4 {[%emt 0:00:05]} 9. dxc4 {[%emt 0:00:05]} Qb6 {[%emt 0:00:01]} 10. Qf3 {[%emt 0:00:05]} Ba6 {[%emt 0:05:26]} 11. b3 $146 {[%emt 0:00:16]} (11. a4 dxc4 12. a5 Qc5 13. Qf2 Ng6 14. Nxg6 hxg6 15. Nf3 c3 16. b3 O-O-O 17. Be3 {1-0 Moussard,J (2596)-Maze,S (2553) FRA-ch 97th L'Alpe d'Huez 2024 (2.6)}) 11... Rg8 {[%emt 0:00:18]} (11... Ng6 $11 12. Nxg6 hxg6) 12. Bb2 $16 {[%emt 0:01:22]} O-O-O {[%emt 0:08:20]} 13. Qh3 {[%emt 0:00:50]} g5 {[%emt 0:01:41]} 14. fxg5 {[%emt 0:00:17]} (14. Qxe6+ Kb7 15. Nf5 (15. Bxf6 $2 Qe3+ 16. Kd1 dxc4 $19) 15... Nxf5 16. exf5 (16. Qxg8 $2 Qe3+ 17. Kd1 dxc4 $19) 16... gxf4) 14... fxg5 {[%emt 0:00:07]} 15. Qxe6+ {[%emt 0:00:03]} Kb8 {[%emt 0:16:26]} 16. Nf5 {[%emt 0:00:13] Prevents Qe3+} Nxf5 {[%emt 0:04:11]} 17. exf5 {[%emt 0:00:04][%csl Of5] White has a strong passed pawn} (17. Qxg8 Qe3+ (17... Bg7 18. c5 $11) 18. Kf1 (18. Kd1 $2 dxc4 19. Be5+ Ka8 $19) 18... dxe4 19. Be5+ Ka8 $19) 17... Bd6 {[%emt 0:13:00]} (17... Bc8 $16 18. Qe2 (18. Qxg8 $2 Qe3+ 19. Kd1 Bb4 $19) 18... Bd6) 18. O-O-O $18 {[%emt 0:00:18]} (18. cxd5 $2 Rge8 19. O-O-O Rxe6 20. dxe6 Be2 $19) 18... Rge8 {[%emt 0:00:03]} 19. Qf6 {[%emt 0:00:32]} dxc4 {[%emt 0:00:18]} 20. Qxg5 {[%emt 0:01:42]} (20. Nxc4 Bf4+ 21. Kb1 Rxd1+ 22. Rxd1 Bxc4 $17) 20... Qa5 {[%emt 0:08:59]} (20... cxb3 $142 21. axb3 Be2) 21. Nxc4 {[%emt 0:00:43]} (21. bxc4 Be7 22. Qg3+ Bd6 23. Qb3+ Ka8) 21... Bxc4 {[%emt 0:00:03]} 22. bxc4 {[%emt 0:00:05]} Ka8 {[%emt 0:00:08] [#]} 23. Qf6 $1 {[%emt 0:02:38] Prevents Qxa2} Rf8 {[%emt 0:04:19] [#]} (23... Qc5 $142) 24. Qh6 $1 {[%emt 0:00:40]} Qc7 {[%emt 0:02:23]} (24... Rfe8 $142 25. Kb1 (25. Rxd6 $2 {is a self mate.} Re1+ 26. Rxe1 Qxe1+) 25... Re7) 25. Rhf1 {[%emt 0:01:14]} Bxh2 {[%emt 0:00:39]} 26. Rxd8+ {[%emt 0:03:54]} Rxd8 {[%emt 0:00:02]} 27. Qe6 {[%emt 0:00:12] Strongly threatening f6.} Bf4+ {[%emt 0:02:12]} (27... Qb6 {might work better.} 28. Qe4 Rb8) 28. Kb1 {[%emt 0:00:07]} Rb8 {[%emt 0:00:05] ...Be5 would now be deadly.} 29. Ka1 {[%emt 0:01:07]} Qb6 {[%emt 0:08:13]} 30. Bc3 {[%emt 0:01:05]} Bd2 {[%emt 0:02:32][%cal Rd2c3]} 31. Qe5 {[%emt 0:00:51]} (31. Bxd2 $2 Qb2#) 31... Qc5 {[%emt 0:00:46]} 32. Qd4 {[%emt 0:02:34]} (32. Qxc5 $2 Bxc3#) 32... Bxc3+ {[%emt 0:01:00]} 33. Qxc3 {[%emt 0:00:04][%mdl 4096] Endgame KQR-KQR. White is two pawns up.} Re8 {[%emt 0:00:14]} 34. g4 {[%emt 0:00:50]} h6 {[%emt 0:03:05]} 35. f6 {[%emt 0:02:33] Wards off Qe7} Re3 {[%emt 0:03:34]} (35... Rf8 $142 36. f7 h5 37. gxh5 Qxh5) 36. Qb2 {[%emt 0:00:04] f7 would kill now.} Re8 {[%emt 0:00:19]} 37. Rb1 {[%emt 0:01:10]} Qb6 {[%emt 0:00:05]} 38. Qxb6 {[%emt 0:00:10]} axb6 {[%emt 0:00:03]} 39. Rh1 {[%emt 0:00:08]} Rh8 {[%emt 0:00:10]} 40. g5 {[%emt 0:00:00] Weighted Error Value: White=0.15 (very precise) /Black=0.70  Mistake:       	---       	Black=7      Inaccurate:     	White=2     	---        OK:         	White=15    	Black=5      Best:        	White=6     	Black=3      Strong:       	White=1     	---} 1-0